Cogmind - Beta 13 @@@ ROGUE MODE // 2024.06.25 @ 12:39:56 Player: Edstelm Result: Destroyed by S-27 Virus with Autogun Performance ------------- Evolutions (5) 2500 Regions Visited (13) 2600 Robots Destroyed (188) 940 Value Destroyed (7281) 7281 Prototype IDs (15) 300 Alien Tech Used (0) 0 Bonus (1880) 1880 TOTAL SCORE: 15501 Bonus ------- High Alert Combat Kills 778 Follower Combat Kills 173 Entered Garrisons 400 Used RIF Installer 500 Entered DSFs 500 Friendly Fire -471 Cogmind --------- Core Integrity 0/1000 Matter 174/300 Energy 58/100 System Corruption 4% Temperature Cool (0) Movement Core (50) Location -5/Upper Caves Parts ------- > --- POWER (1) -------- (None) > --- PROPULSION (5) --- (None) > --- UTILITY (7) ------ Advanced Signal Interpreter > --- WEAPON (4) ------- (None) > --- INVENTORY (5) ---- Light Fission Core Neutrino Core Advanced Cooling System Weapon Cycler Improved System Shield Peak State ------------ > --- POWER ------------ Fission Core > --- PROPULSION ------- Improved Titanium Leg Improved Titanium Leg Flexi-carbon Leg Armored Leg Improved VSS Leg > --- UTILITY ---------- High-capacity Storage Unit Advanced Sensor Array Improved Signal Interpreter Improved Target Analyzer Core Analyzer Layered Medium Armor Plating Relay Coupler [Swarmer] > --- WEAPON ----------- Precision Shock Rifle Coil Gun Coil Gun Power Sword > --- INVENTORY -------- Fission Core Carbon-fiber Leg Power Amplifier Advanced Heat Sink Structural Scanner Improved Particle Charger Improved Heavy Armor Plating Improved Heavy Armor Plating Improved Shock Absorption System Improved Hardlight Generator Relay Coupler [Demolisher] Thermic Laser Thermic Laser Compact Ion Cannon Heavy Flak Cannon Long-range Missile Launcher Improved Remote Datajack [Rating: 83] Favorites ----------- Power Fission Core Engine Angular Momentum Engine Power Core Fission Core Reactor Cold Fusion Reactor Propulsion Flexi-carbon Leg Treads Light Treads Leg Flexi-carbon Leg Wheel Armored Wheel Hover Unit Hover Unit Utility Core Analyzer Device Advanced Sensor Array Storage Large Storage Unit Processor Core Analyzer Hackware Relay Coupler [Swarmer] Protection Improved Heavy Armor Plating Weapon Coil Gun Energy Gun Precision Shock Rifle Energy Cannon Cooled Plasma Cannon Ballistic Gun Coil Gun Ballistic Cannon Heavy Flak Cannon Launcher Long-range Missile Launcher Special Weapon Improved Remote Datajack Impact Weapon Hammer Slashing Weapon Power Sword Piercing Weapon Spear Build | -11 -10 -9 -9 -9 -8 -8 -8 -7 -7 -6 -5 -5 -5 ------- Run | Yrd Mat Mat Sto Gar Mat Gar Mat Fac DSF Fac Fac Upp Upp Slots Evolved 10 | . . 2 . . 2 . . 2 . 2 2 . . Power . | . . . . . . . . . . . . . . Propulsion 3 | . . 1 . . . . . . . 1 1 . . Utility 5 | . . 1 . . 1 . . 2 . 1 . . . Weapon 2 | . . . . . 1 . . . . . 1 . . Parts Attached 251 | 7 5 9 4 29 11 29 7 3 13 79 33 15 7 Power 24 | 1 1 . . 2 3 4 1 . 2 6 2 . 2 Engine 11 | 1 . . . 2 2 2 1 . 1 2 . . . Core 12 | . 1 . . . 1 2 . . 1 3 2 . 2 Reactor 1 | . . . . . . . . . . 1 . . . Propulsion 60 | 2 . 5 . 12 1 10 . 1 5 14 6 3 1 Treads 20 | 2 . 5 . 8 1 3 . . . . . 1 . Leg 38 | . . . . 4 . 7 . 1 5 13 6 2 . Wheel 1 | . . . . . . . . . . . . . 1 Hover 1 | . . . . . . . . . . 1 . . . Flight . | . . . . . . . . . . . . . . Utility 86 | 2 2 3 1 7 4 6 3 2 3 26 17 8 2 Device 52 | 1 . 1 . 6 4 4 . 1 2 10 14 7 2 Storage 7 | 1 1 . . . . . 1 . . 3 1 . . Processor 7 | . . 1 . . . . . . 1 4 . 1 . Hackware 5 | . 1 . . . . . 2 . . 2 . . . Protection 15 | . . 1 1 1 . 2 . 1 . 7 2 . . Artifact . | . . . . . . . . . . . . . . Weapon 81 | 2 2 1 3 8 3 9 3 . 3 33 8 4 2 Energy Gun 19 | 1 1 1 . 2 2 . 1 . 1 6 1 2 1 Energy Cannon 9 | . . . . . . . 1 . 2 5 1 . . Ballistic Gun 20 | 1 1 . 1 1 . 6 . . . 9 1 . . Ballistic Cannon 8 | . . . 2 3 1 . . . . . 1 . 1 Launcher 6 | . . . . . . 1 . . . 2 2 1 . Special Weapon 7 | . . . . . . . 1 . . 4 2 . . Impact Weapon 2 | . . . . 2 . . . . . . . . . Slashing Weapon 9 | . . . . . . 2 . . . 7 . . . Piercing Weapon 1 | . . . . . . . . . . . . 1 . Special Melee Weapon . | . . . . . . . . . . . . . . Unidentified Prototypes 9 | . . 1 . . 1 . . . . 5 2 . . Corrupted Parts 5 | . . . . 1 . 1 . . . 3 . . . System Corruption 40 | . . . . 10 . 7 . . . 23 . . . Parts Lost 109 | . . . 1 17 6 16 2 . 3 35 3 18 8 Power 10 | . . . . 1 2 2 . . . 3 . 1 1 Propulsion 40 | . . . 1 8 2 5 1 . 1 10 3 8 1 Utility 28 | . . . . 5 1 4 . . 1 11 . 2 4 Weapon 31 | . . . . 3 1 5 1 . 1 11 . 7 2 Highest Loss Streak 16 | . . . 1 6 4 6 2 . 2 10 2 16 7 To Critical Strikes 2 | . . . . . . . . . . 1 . 1 . Average Slot Usage (%) 92 | . 100 100 98 90 75 91 98 76 93 95 93 91 50 Engine 3 | . 6 . . 10 5 1 4 7 2 4 . . . Core 4 | . 7 11 11 . 3 6 4 . 4 1 5 4 4 Treads 8 | . 28 33 31 19 20 7 25 15 1 . . . . Leg 16 | . . . . 10 . 15 . . 21 24 27 27 . Device 10 | . 6 4 . 15 10 24 11 7 9 13 5 7 21 Storage 7 | . 14 11 11 11 9 9 9 7 7 6 4 4 . Processor 6 | . . 6 . . . . . . . 9 12 11 10 Hackware 5 | . 7 11 11 . . . 9 15 15 6 5 2 . Protection 4 | . . . 11 1 . 1 5 . 7 7 5 4 . Energy Gun 4 | . 14 11 6 5 5 1 1 7 10 2 2 2 3 Energy Cannon 2 | . . . . . . . 5 7 9 3 1 4 . Ballistic Gun 7 | . 14 11 6 2 . 10 7 . . 7 9 4 . Ballistic Cannon 2 | . . . 10 8 11 1 . . . . 3 4 3 Special Weapon 1 | . . . . . . . 8 7 . 1 . 2 . Slashing Weapon 1 | . . . . . . 10 3 . . 3 . . . Naked Turns . | . . . . . . . . . . . . . . Heaviest Build 88 | 14 30 33 40 45 40 38 46 46 58 74 88 65 31 Greatest Support 100 | 40 40 63 63 63 60 60 60 40 58 78 100 90 12 Greatest Overweight (x) 4 | . . . . 1 . 1 1 1 1 1 1 4 2 Average Overweight (x) . | . . . . . . . . 1 . . . . . Largest Inventory Capacity 20 | 8 15 15 15 15 15 15 15 15 15 20 20 10 5 Average Capacity 14 | 7 14 15 15 15 15 15 15 15 15 18 13 9 5 Most Carried 20 | 6 15 15 15 15 13 15 15 15 15 20 20 10 5 Average Carried 13 | 4 13 14 14 10 11 13 14 14 14 16 13 9 4 Final Capacity 20 | 8 15 15 15 15 15 15 15 15 15 20 10 5 5 Final Carried 20 | 6 15 14 15 13 13 14 15 12 14 20 10 3 5 Class Distribution -------------------- 33% | Mutant 21% | Scavenger-Skirmisher 20% | Scavenger-Mutant 12% | Scavenger-Gunner 3% | Skirmisher Dominant Class ---------------- Mutant | -10/Materials Scavenger-Mutant | -9/Materials Scavenger-Mutant | -9/Storage Mutant | -9/Garrison Scavenger-Mutant | -8/Materials Scavenger-Mutant | -8/Garrison Scavenger-Mutant | -8/Materials Scavenger-Mutant | -7/Factory Scavenger-Tank | -7/DSF Mutant | -6/Factory Scavenger-Skirmisher | -5/Factory Scavenger-Skirmisher | -5/Upper Caves Derelict-Mutant | -5/Upper Caves Resources | -11 -10 -9 -9 -9 -8 -8 -8 -7 -7 -6 -5 -5 -5 ----------- Run | Yrd Mat Mat Sto Gar Mat Gar Mat Fac DSF Fac Fac Upp Upp Matter Collected 4720 | 255 107 178 127 545 407 353 124 . 140 1103 904 350 127 Remotely . | . . . . . . . . . . . . . . Salvage Created 7280 | 30 351 456 341 599 497 446 432 . 441 1585 1192 823 87 Parts 365 | 2 21 26 18 35 36 33 11 . 22 85 49 23 4 Haulers Intercepted 4 | . 1 1 . . 1 . . . . 1 . . . Recyclers Shooed 3 | . . . . . . . 1 . . . 2 . . Parts Field Recycled . | . . . . . . . . . . . . . . Retrieved Matter . | . . . . . . . . . . . . . . Parts Self-Destructed 23 | . . . . . . . . . . . . 19 4 Prevented 1 | . . . . . . . . . . . . 1 . Kills | -11 -10 -9 -9 -9 -8 -8 -8 -7 -7 -6 -5 -5 -5 ------- Run | Yrd Mat Mat Sto Gar Mat Gar Mat Fac DSF Fac Fac Upp Upp Combat Hostiles Destroyed 158 | . 7 8 8 20 17 13 5 . 6 31 22 18 3 Melee 23 | . . . . 1 2 7 . . . 13 . . . Guns 57 | . 7 7 4 11 . 5 1 . 1 10 6 5 . Cannons 50 | . . . 3 6 13 1 3 . 5 3 7 6 3 AOE 21 | . . . . 1 . . . . . 5 9 6 . Classes Destroyed 16 | 1 5 1 1 2 2 1 1 . 1 1 . . . Worker 6 | . . . . . 1 . . . . 1 4 . . Builder 2 | . . . . . 1 . . . . . 1 . . Tunneler 1 | 1 . . . . . . . . . . . . . Hauler 4 | . 1 1 . . 1 . . . . 1 . . . Recycler 3 | . . . . . . . 2 . . . 1 . . Operator 2 | . 1 . . . 1 . . . . . . . . Watcher 10 | . 2 1 1 . 1 . . . . 3 2 . . Swarmer 44 | . 3 . . 7 7 3 . . . 8 3 12 1 Cutter 3 | . . . . . . 3 . . . . . . . Grunt 55 | . 4 3 4 8 4 4 5 . . 8 11 4 . Brawler 3 | . . . . 1 1 . . . . . 1 . . Duelist 5 | . . . 1 2 1 . . . . . 1 . . Sentry 20 | . . 5 3 2 1 3 . . . 2 3 1 . Specialist 7 | . . . . . . . . . 5 2 . . . Hunter 13 | . . . . 2 3 . . . 1 3 1 1 2 Programmer 10 | . . . . . . . . . . 8 2 . . Best Kill Streak 14 | 1 3 3 4 10 14 5 3 . 2 6 14 11 1 Combat Bots Only 11 | . 3 2 3 10 10 5 3 . 2 4 10 11 1 Max Kills in Single Turn 6 | 1 2 1 1 2 3 1 1 . 1 2 6 5 1 Gunslinging 1 | . 1 . . 1 . . . . . 1 . . . Exploded 5 | . . . . 1 . . . . . 2 3 5 . Melee 1 | . . . . 1 1 1 . . . 1 . . . Uniques/NPCs Destroyed . | . . . . . . . . . . . . . . Combat | -11 -10 -9 -9 -9 -8 -8 -8 -7 -7 -6 -5 -5 -5 -------- Run | Yrd Mat Mat Sto Gar Mat Gar Mat Fac DSF Fac Fac Upp Upp Hostile Shots Fired 1445 | . 26 54 29 168 130 142 30 . 50 470 88 175 83 Missed 400 | . 10 16 5 38 43 34 5 . 19 139 22 41 28 Damage Taken 16561 | . 178 569 377 1910 1061 1541 400 . 687 4961 1510 2485 882 Core 2561 | . 21 155 15 204 195 206 44 . 103 611 77 505 425 Absorbed by Shields . | . . . . . . . . . . . . . . Redirected to Shielding 298 | . . . . . . . . . . 298 . . . Regen/Repaired (Parts) 51 | . . . . . . . . . . 51 . . . Core Remaining (%) 54 | 100 91 . . 6 . . 19 . 85 28 . . . Volleys Fired 464 | 3 39 36 21 57 43 36 30 . 15 86 43 42 13 Largest 4 | 2 2 2 2 2 2 2 2 . 3 3 4 4 2 Hottest 258 | 60 85 85 78 84 89 89 140 . 195 185 198 258 107 Shots Fired 952 | 6 78 72 40 98 83 60 50 . 43 169 135 95 23 Gun 572 | 6 78 72 18 46 7 49 20 . 24 117 89 36 10 Cannon 340 | . . . 22 52 76 10 24 . 19 38 36 50 13 Launcher 17 | . . . . . . 1 . . . 3 8 5 . Special 23 | . . . . . . . 6 . . 11 2 4 . Kinetic 558 | 3 39 36 31 75 76 54 16 . . 85 95 35 13 Thermal 223 | . 17 36 . . . . 28 . 30 38 13 51 10 Explosive 17 | . . . . . . 1 . . . 3 8 5 . Electromagnetic 131 | 3 22 . 9 23 7 5 . . 13 32 17 . . Robot Hit Streak 19 | 2 6 12 15 15 8 11 19 . 10 7 11 6 6 Robot Miss Streak 17 | 1 3 4 2 2 5 6 2 . 3 3 8 17 4 Penetration Max 1 | . . . . . . . . . . 1 1 . . Secondary Targets 15 | . 2 2 2 7 . . . . . 2 . . . Max Gunslinging Chain 1 | . 1 1 1 1 . . . . . 1 . . . Shots Hit Robots 677 | 4 44 54 28 69 62 58 41 . 26 146 82 47 16 Core Hits 375 | 2 20 17 12 33 28 29 14 . 11 70 81 47 11 Critical Kills 5 | . . . . . 1 . . . . 3 1 . . Critical Parts Destroyed 9 | . . . . 1 . . . . . 5 3 . . Critical Strikes 39 | . 1 2 1 1 3 4 1 . . 15 5 3 3 Burn 9 | . 1 2 . . . . 1 . . . 1 3 1 Destroy 13 | . . . . . . . . . . 9 4 . . Blast 5 | . . . 1 . 2 . . . . . . . 2 Smash 2 | . . . . 1 1 . . . . . . . . Sever 10 | . . . . . . 4 . . . 6 . . . Melee Attacks 130 | . . . . 21 15 35 . . . 57 . 2 . Impact 36 | . . . . 21 15 . . . . . . . . Slashing 92 | . . . . . . 35 . . . 57 . . . Piercing 2 | . . . . . . . . . . . . 2 . Sneak Attacks 3 | . . . . . . . . . . 3 . . . Combat Hostiles 1 | . . . . . . . . . . 1 . . . Follow-up Attacks 1 | . . . . . . 1 . . . . . . . Damage Inflicted 17643 | 43 546 802 628 1610 1658 1204 694 . 573 4156 3397 1958 374 Guns 5833 | 43 546 802 229 582 167 355 182 . 224 1147 1134 302 120 Cannons 5315 | . . . 335 561 1057 164 512 . 349 706 580 824 227 Explosions 3877 | . . . 64 348 206 . . . . 779 1683 797 . Melee 2572 | . . . . 119 228 685 . . . 1505 . 35 . Ramming 46 | . . . . . . . . . . 19 . . 27 Kinetic 6053 | 15 197 340 399 755 1057 409 120 . . 863 1288 383 227 Thermal 3644 | . 140 462 64 77 . . 574 . 495 776 193 743 120 Explosive 3666 | . . . . 271 206 . . . . 709 1683 797 . Electromagnetic 1647 | 28 209 . 165 388 167 95 . . 78 284 233 . . Impact 362 | . . . . 119 228 15 . . . . . . . Slashing 2190 | . . . . . . 685 . . . 1505 . . . Piercing 35 | . . . . . . . . . . . . 35 . Highest Corruption 27 | . 2 . . 15 . 8 8 . . 27 4 4 4 Average Corruption 6 | . 2 . . 5 . 7 8 . . 9 3 4 4 Corruption Purged 3 | . . . . . . . . . . 3 . . . Corruption Blocked 8 | . . . . . . . . . . 8 . . . Effects 162 | . 4 . . 30 . 16 10 . . 52 17 28 5 Message Errors 39 | . . . . 7 . 6 2 . . 12 4 7 1 Matter Fused 34 | . . . . 6 . 4 1 . . 14 4 4 1 Heat Flow Errors 15 | . 1 . . 1 . 2 1 . . 5 4 1 . Energy Discharges 28 | . 2 . . 5 . . 1 . . 10 1 7 2 Parts Rejected 1 | . . . . 1 . . . . . . . . . Parts Fused 1 | . . . . . . 1 . . . . . . . Data Loss (minor) 18 | . . . . 2 . 2 3 . . 4 1 6 . Data Loss (major) 11 | . 1 . . 3 . 1 1 . . 3 1 1 . Misfires 4 | . . . . 1 . . . . . . 2 1 . Alerts 2 | . . . . . . . 1 . . 1 . . . Misdirections 2 | . . . . . . . . . . 2 . . . Weapon Failures 7 | . . . . 4 . . . . . 1 . 1 1 Overload Shots . | . . . . . . . . . . . . . . Overflow Damage 419 | . . . . 106 112 6 11 . . 96 10 78 . Projectiles 112 | . . . . 6 15 . 11 . . 8 4 68 . Explosions 159 | . . . . 73 70 . . . . . 6 10 . Melee 148 | . . . . 27 27 6 . . . 88 . . . Knockbacks 56 | . . . 3 9 13 3 . . . . 11 16 1 Impact 2 | . . . . . 1 1 . . . . . . . Kinetic 50 | . . . 2 9 12 2 . . . . 11 13 1 Secondary 4 | . . . 1 . . . . . . . . 3 . Self-Inflicted Damage 386 | . . . 29 196 . . . . . 31 51 66 13 Shots 12 | . . . 1 3 . . . . . 1 3 4 . Rammed 6 | . . . . . . . . . . . . . 6 Targets Rammed 10 | . . . . . . . . . . 4 . . 6 Kicked 4 | . . . . . . . . . . 4 . . . Crushed . | . . . . . . . . . . . . . . Highest Temperature 681 | 20 173 276 156 292 105 263 150 . 96 371 374 681 . Average Temperature 97 | 15 51 96 72 101 37 127 41 . 31 64 120 289 . Received Heat Transfer 3370 | . 84 228 153 264 162 603 225 . . 787 306 558 . Effects 13 | . . . . 1 . . . . . . 1 11 . Energy Bleed 4 | . . . . 1 . . . . . . . 3 . Interference 5 | . . . . . . . . . . . 1 4 . Matter Decay 1 | . . . . . . . . . . . . 1 . Damage (minor) 2 | . . . . . . . . . . . . 2 . Damage (major) 1 | . . . . . . . . . . . . 1 . Siege Activations . | . . . . . . . . . . . . . . Robots Corrupted . | . . . . . . . . . . . . . . Combat Hostiles . | . . . . . . . . . . . . . . Parts Fried 12 | . 1 . 1 5 4 . . . . 1 . . . Impact Corruptions 5 | . . . 1 1 3 . . . . . . . . Robots Melted 3 | . . 1 . . . . 1 . . . . 1 . Combat Hostiles 3 | . . 1 . . . . 1 . . . . 1 . Parts Melted 13 | . 1 3 . . . . 1 . . 4 1 1 2 Heat Transferred 7012 | . 407 1184 100 124 . . 888 . 740 1086 450 1700 333 Parts Sabotaged 3 | . . . . . . . . . . . 3 . . Parts Stolen . | . . . . . . . . . . . . . . Parts Stripped . | . . . . . . . . . . . . . . Power Chain Reactions 4 | . . . 1 3 . . . . . . . . . Alert | -11 -10 -9 -9 -9 -8 -8 -8 -7 -7 -6 -5 -5 -5 ------- Run | Yrd Mat Mat Sto Gar Mat Gar Mat Fac DSF Fac Fac Upp Upp Peak Influence 847 | 5 240 282 310 653 847 680 504 228 324 717 814 . . Initial 420 | . 3 37 66 130 317 420 331 228 159 170 350 . . Average 332 | 2 101 168 163 446 632 556 408 228 221 244 532 . . Maximum Alert Level 3 | . 1 1 1 2 3 2 2 1 1 3 3 . . Low Security (%) 41 | 100 93 56 75 13 . . . . 40 64 . . . Level 1 18 | . 6 43 24 16 12 . 40 100 59 10 34 . . Level 2 33 | . . . . 70 42 100 59 . . 23 41 . . Level 3 6 | . . . . . 45 . . . . 1 23 . . Level 4 . | . . . . . . . . . . . . . . Level 5 . | . . . . . . . . . . . . . . High Security . | . . . . . . . . . . . . . . Max Security . | . . . . . . . . . . . . . . Squads Dispatched 28 | . 1 1 1 . 6 . 1 . 2 10 6 . . Investigation 4 | . . . . . . . 1 . . 2 1 . . Extermination 6 | . . . . . . . . . . 5 1 . . Reinforcement 10 | . 1 1 . . 2 . . . 2 3 1 . . Assault 4 | . . . . . 1 . . . . . 3 . . Garrison 4 | . . . 1 . 3 . . . . . . . . Intercept . | . . . . . . . . . . . . . . Searches Triggered . | . . . . . . . . . . . . . . Construction Impeded . | . . . . . . . . . . . . . . Haulers Reinforced . | . . . . . . . . . . . . . . Active Scanning Responses . | . . . . . . . . . . . . . . Cargo Convoy Interrupts 1 | . . . . . . . . . . 1 . . . Stealth | -11 -10 -9 -9 -9 -8 -8 -8 -7 -7 -6 -5 -5 -5 --------- Run | Yrd Mat Mat Sto Gar Mat Gar Mat Fac DSF Fac Fac Upp Upp Distress Signals 12 | . 1 2 1 . 1 . 2 . . 3 2 . . Communications Jammed . | . . . . . . . . . . . . . . Distress Signals . | . . . . . . . . . . . . . . Times Spotted 253 | . 14 12 10 26 20 14 11 . 6 59 40 25 16 Peak Tracking Total 14 | . 3 4 4 5 6 5 5 . 2 7 8 14 9 Tactical Retreats 19 | . 1 . . 2 1 1 . . 2 8 1 1 2 Traps | -11 -10 -9 -9 -9 -8 -8 -8 -7 -7 -6 -5 -5 -5 ------- Run | Yrd Mat Mat Sto Gar Mat Gar Mat Fac DSF Fac Fac Upp Upp Traps Triggered 10 | . 1 . 1 3 . 1 . . . 1 3 . . Indirectly . | . . . . . . . . . . . . . . Trap Hack Attempts . | . . . . . . . . . . . . . . Triggered . | . . . . . . . . . . . . . . Disarmed . | . . . . . . . . . . . . . . Reprogrammed 6 | . 6 . . . . . . . . . . . . Reused . | . . . . . . . . . . . . . . Traps Extracted . | . . . . . . . . . . . . . . Installed . | . . . . . . . . . . . . . . Triggered 1 | . . . . . . . . . . 1 . . . Machines | -11 -10 -9 -9 -9 -8 -8 -8 -7 -7 -6 -5 -5 -5 ---------- Run | Yrd Mat Mat Sto Gar Mat Gar Mat Fac DSF Fac Fac Upp Upp Machines Disabled 24 | . . . . 2 2 . 2 . 1 11 4 2 . Max in Single Turn 5 | . . . . 2 2 . 1 . 1 5 1 2 . Garrison Access 4 | . . . . . . . . . . 2 2 . . Garrison Relay 1 | . . . . 1 . . . . . . . . . Phase Generator 1 | . . . . 1 . . . . . . . . . Machines Repaired . | . . . . . . . . . . . . . . Machines Dismantled . | . . . . . . . . . . . . . . Machines Sabotaged . | . . . . . . . . . . . . . . Overloaded Fab Kills . | . . . . . . . . . . . . . . Hacking | -11 -10 -9 -9 -9 -8 -8 -8 -7 -7 -6 -5 -5 -5 --------- Run | Yrd Mat Mat Sto Gar Mat Gar Mat Fac DSF Fac Fac Upp Upp Machines Accessed 43 | . 6 3 5 2 2 2 2 1 . 15 5 . . Terminals 29 | . 5 3 4 2 . 2 2 1 . 8 2 . . Fabricators 3 | . . . . . . . . . . 2 1 . . Repair Stations 2 | . . . . . . . . . . 2 . . . Recycling Units 3 | . 1 . . . 1 . . . . 1 . . . Scanalyzers . | . . . . . . . . . . . . . . Garrison Access 6 | . . . 1 . 1 . . . . 2 2 . . Total Hacks 107 | . 19 14 15 3 2 5 8 3 . 26 12 . . Successful 50 | . 9 7 11 . 2 . 1 1 . 13 6 . . Failed 57 | . 10 7 4 3 . 5 7 2 . 13 6 . . Catastrophic 16 | . 2 . . 2 . 3 2 . . 5 2 . . Database Lockouts . | . . . . . . . . . . . . . . Manual 66 | . 16 14 9 1 . . 7 . . 12 7 . . Terminals 82 | . 16 14 13 3 . 5 8 3 . 15 5 . . Fabricators 4 | . . . . . . . . . . 3 1 . . Repair Stations 3 | . . . . . . . . . . 3 . . . Recycling Units 6 | . 3 . . . 1 . . . . 2 . . . Scanalyzers . | . . . . . . . . . . . . . . Garrison Access 12 | . . . 2 . 1 . . . . 3 6 . . Terminal Hacks 20 | . 3 5 5 . . . 1 1 . 4 1 . . Record 1 | . . . . . . . . . . . 1 . . Robot Analysis 4 | . 1 3 . . . . . . . . . . . Prototype ID Bank 3 | . . 1 . . . . 1 . . 1 . . . Open Door 1 | . . . 1 . . . . . . . . . . Open DSF 2 | . . . . . . . . 1 . 1 . . . Branch Access Points 1 | . . . . . . . . . . 1 . . . Emergency Access Points 1 | . . . . . . . . . . 1 . . . Garrison Index 1 | . . . 1 . . . . . . . . . . Unreport Threat 1 | . . . 1 . . . . . . . . . . Locate Traps 1 | . . . 1 . . . . . . . . . . Reprogram Traps 1 | . 1 . . . . . . . . . . . . Recall Reinforcements 1 | . . . 1 . . . . . . . . . . Hauler Manifests 1 | . . 1 . . . . . . . . . . . Registered Components 1 | . 1 . . . . . . . . . . . . Fabricator Hacks 2 | . . . . . . . . . . 1 1 . . Network Status 1 | . . . . . . . . . . . 1 . . Build 1 | . . . . . . . . . . 1 . . . Repair Station Hacks 2 | . . . . . . . . . . 2 . . . Scan Component 1 | . . . . . . . . . . 1 . . . Repair 1 | . . . . . . . . . . 1 . . . Recycling Unit Hacks 2 | . . . . . 1 . . . . 1 . . . Report Inventory 2 | . . . . . 1 . . . . 1 . . . Scanalyzer . | . . . . . . . . . . . . . . Garrison Access Hacks 7 | . . . 1 . 1 . . . . 2 3 . . Unlock Access 2 | . . . 1 . 1 . . . . . . . . Seal Access 4 | . . . . . . . . . . 2 2 . . Coupler Status 1 | . . . . . . . . . . . 1 . . Unauthorized Hacks 17 | . 6 2 5 . . . . . . 3 1 . . Terminals 14 | . 5 2 4 . . . . . . 2 1 . . Botnet 13 | . 5 2 3 . . . . . . 2 1 . . Disrupt 1 | . . . 1 . . . . . . . . . . Fabricators . | . . . . . . . . . . . . . . Repair Stations . | . . . . . . . . . . . . . . Recycling Units 1 | . 1 . . . . . . . . . . . . Mask 1 | . 1 . . . . . . . . . . . . Scanalyzers . | . . . . . . . . . . . . . . Garrison Access 2 | . . . 1 . . . . . . 1 . . . Intercept 2 | . . . 1 . . . . . . 1 . . . Data Cores Recovered 1 | . 1 . . . . . . . . . . . . Used 1 | . 1 . . . . . . . . . . . . Hacking Detections 37 | . 6 3 4 2 . 2 2 . . 13 5 . . Full Trace Events 7 | . . 1 1 1 . 2 1 . . 1 . . . Feedback Events 1 | . . . . . . 1 . . . . . . . Corruption 1 | . . . . . . 1 . . . . . . . Feedback Blocked . | . . . . . . . . . . . . . . Robot Schematics Acquired . | . . . . . . . . . . . . . . Robots Built 1 | . . . . . . . . . . 1 . . . Authchips . | . . . . . . . . . . . . . . Time 58 | . . . . . . . . . . 58 . . . Total Robot Build Rating 3 | . . . . . . . . . . 3 . . . Part Schematics Acquired . | . . . . . . . . . . . . . . Parts Built . | . . . . . . . . . . . . . . Authchips . | . . . . . . . . . . . . . . Time . | . . . . . . . . . . . . . . Total Part Build Rating . | . . . . . . . . . . . . . . Parts Repaired 1 | . . . . . . . . . . 1 . . . Time 44 | . . . . . . . . . . 44 . . . Parts Recycled . | . . . . . . . . . . . . . . Recycled Matter . | . . . . . . . . . . . . . . Retrieved Matter . | . . . . . . . . . . . . . . Retrieved Components . | . . . . . . . . . . . . . . Parts Scanalyzed . | . . . . . . . . . . . . . . Part Schematics Acquired . | . . . . . . . . . . . . . . Parts Damaged . | . . . . . . . . . . . . . . Bothacking | -11 -10 -9 -9 -9 -8 -8 -8 -7 -7 -6 -5 -5 -5 ------------ Run | Yrd Mat Mat Sto Gar Mat Gar Mat Fac DSF Fac Fac Upp Upp Used RIF Installer 1 | . . . . 1 . . . . . . . . . Robots Hacked 14 | . . . . . . . 4 . . 5 2 3 . Non-combat 5 | . . . . . . . 2 . . 3 . . . Combat 9 | . . . . . . . 2 . . 2 2 3 . Robot Hacks Applied 14 | . . . . . . . 4 . . 5 2 3 . parse_system 3 | . . . . . . . 1 . . 1 . 1 . no_distress 2 | . . . . . . . 2 . . . . . . map_route 1 | . . . . . . . . . . 1 . . . reboot_propulsion 1 | . . . . . . . 1 . . . . . . amplify_resonance 2 | . . . . . . . . . . . 1 1 . reboot_system 1 | . . . . . . . . . . . . 1 . overwrite_iff 2 | . . . . . . . . . . 2 . . . formatsys_low 1 | . . . . . . . . . . 1 . . . formatsys_high 1 | . . . . . . . . . . . 1 . . Relay Couplers Released 7 | . . . . 4 . . . . . 3 . . . Machine Destruction 4 | . . . . 4 . . . . . . . . . Programmers 3 | . . . . . . . . . . 3 . . . Attached 4 | . . . . . . . 2 . . 2 . . . Fabnet Peak Effective % . | . . . . . . . . . . . . . . Robots Rewired 3 | . . . . 3 . . . . . . . . . Allies Hacked . | . . . . . . . . . . . . . . Hacks Repelled . | . . . . . . . . . . . . . . Allies | -11 -10 -9 -9 -9 -8 -8 -8 -7 -7 -6 -5 -5 -5 -------- Run | Yrd Mat Mat Sto Gar Mat Gar Mat Fac DSF Fac Fac Upp Upp Total Allies 10 | . . . . 3 . 2 . . . 4 1 . . Largest Group 3 | . . . . 3 . 2 2 . . 1 1 1 . Highest-Rated Group 62 | . . . . 24 . 62 62 . . 15 12 12 . Highest-Rated Ally 31 | . . . . 8 . 31 31 . . 15 12 12 . Total Orders 6 | . . . . 6 . . . . . . . . . EXPLORE 5 | . . . . 5 . . . . . . . . . RETURN 1 | . . . . 1 . . . . . . . . . Ally Attacks 57 | . . . . 14 . . 29 . . 11 . 3 . Total Damage 582 | . . . . 133 . . 334 . . 79 . 36 . Kills 7 | . . . . 3 . . 2 . . 2 . . . Allies Corrupted . | . . . . . . . . . . . . . . Allies Melted . | . . . . . . . . . . . . . . Intel | -11 -10 -9 -9 -9 -8 -8 -8 -7 -7 -6 -5 -5 -5 ------- Run | Yrd Mat Mat Sto Gar Mat Gar Mat Fac DSF Fac Fac Upp Upp Robot Analysis Total 4 | . 1 3 . . . . . . . . . . . Derelict Logs Recovered 3 | . . . . . . . . . . . . 2 1 Drone Launches 7 | . . . . 7 . . . . . . . . . Drone Recoveries 4 | . . . . 4 . . . . . . . . . Exploration | -11 -10 -9 -9 -9 -8 -8 -8 -7 -7 -6 -5 -5 -5 ------------- Run | Yrd Mat Mat Sto Gar Mat Gar Mat Fac DSF Fac Fac Upp Upp Turns Passed 10280 | 112 791 544 322 920 434 624 274 11 209 3063 1319 1397 260 Spaces Moved 5701 | 49 391 258 139 328 147 288 108 3 85 1893 848 943 221 Core 97 | 2 . . . . . . . . . . . 55 40 Treads 1438 | 47 391 258 139 229 147 110 108 3 5 . . 1 . Legs 3985 | . . . . 99 . 178 . . 80 1893 848 887 . Wheels 181 | . . . . . . . . . . . . . 181 Hover . | . . . . . . . . . . . . . . Flight . | . . . . . . . . . . . . . . Fastest Speed 50 | 50 160 160 160 120 160 120 160 240 120 112 118 50 50 Average Speed 134 | 155 160 160 160 184 160 136 168 240 132 127 124 119 93 Slowest Speed 250 | 160 160 160 160 240 160 190 240 240 240 190 196 250 120 Overloaded Moves . | . . . . . . . . . . . . . . Propulsion Burnouts . | . . . . . . . . . . . . . . Robots Hopped . | . . . . . . . . . . . . . . Cave-ins Triggered . | . . . . . . . . . . . . . . Exploration Rate (%) 40 | 5 81 26 27 57 11 42 17 . 62 48 23 92 31 Regions Visited 13 Branch Regions 3 Pre-discovered Areas . | . . . . . . . . . . . . . . Known Exits Taken 7 | . . 1 1 . 1 . . 1 . 1 1 1 . Unknown Exits Taken 3 | 1 1 . . . . . 1 . . . . . . Scrap Searched 7 | . . . . . . . . . . . . 5 2 Spaces Dug 12 | . . . 1 . . . . . . 11 . . . Terrain Destroyed 372 | . . . 9 79 7 . 2 . . 115 117 36 7 Melee 11 | . . . . . . . . . . 11 . . . Projectile 36 | . . . 3 . 2 . 2 . . 2 8 12 7 AOE 325 | . . . 6 79 5 . . . . 102 109 24 . Terrain Rammed . | . . . . . . . . . . . . . . Walls Destroyed . | . . . . . . . . . . . . . . Machines Disabled . | . . . . . . . . . . . . . . Actions | -11 -10 -9 -9 -9 -8 -8 -8 -7 -7 -6 -5 -5 -5 --------- Run | Yrd Mat Mat Sto Gar Mat Gar Mat Fac DSF Fac Fac Upp Upp Total 7269 | 76 493 321 202 502 233 406 159 6 147 2318 1015 1137 254 Wait 389 | 12 20 7 24 . 16 . . . 21 112 52 125 . Move 5689 | 48 390 257 138 327 146 287 107 3 84 1892 847 942 221 Hop . | . . . . . . . . . . . . . . Pick Up 168 | 6 22 5 7 12 2 16 8 . 6 54 22 5 3 Fast Attach 56 | 7 1 1 . 5 6 9 . . 3 13 6 1 4 Attach 101 | . . 2 . 19 3 13 2 3 4 32 11 9 3 Detach 22 | . 1 . . 6 . 1 . . 2 5 4 . 3 Swap 94 | . 4 6 4 5 2 7 5 . 6 34 16 5 . Drop 96 | . 16 7 8 . . 4 7 . 6 28 14 5 1 Fire 464 | 3 39 36 21 57 43 36 30 . 15 86 43 42 13 Melee 128 | . . . . 21 15 33 . . . 57 . 2 . Ram 6 | . . . . . . . . . . . . . 6 Kick 4 | . . . . . . . . . . 4 . . . Crush . | . . . . . . . . . . . . . . Escape Stasis . | . . . . . . . . . . . . . . Rewire 52 | . . . . 50 . . . . . 1 . 1 . Trap . | . . . . . . . . . . . . . . Miscellaneous . | . . . . . . . . . . . . . . Route ------- -11/Scrapyard -10/Materials (discovered 4 exits: *Mat x3 / [*Min]) -9/Materials (discovered 2 exits: *Min / *Sto) -9/Storage -9/Garrison -8/Materials -8/Garrison -8/Materials -7/Factory -7/DSF -6/Factory (discovered 5 exits: *Fac / *Low x2 / Ext x2) -5/Factory -5/Upper Caves -5/Upper Caves History --------- Turn | Location | Event 12 | -11/Scrapyard | Discovered new exit (range 15) 113 | -11/Scrapyard | Entered Materials 304 | -10/Materials | Build established: Mutant 509 | -10/Materials | Discovered new exit (range 4) 638 | -10/Materials | Discovered new exit (range 6) 737 | -10/Materials | Discovered new exit (range 13) 841 | -10/Materials | Discovered new exit (range 9) 904 | -10/Materials | Entered another Materials area 904 | -9/Materials | Evolved 2 slots: Propulsion x1, Utility x1 997 | -9/Materials | Discovered new exit (range 8) 1050 | -9/Materials | Discovered new exit (range 15) 1113 | -9/Materials | Identified exit to Mines 1228 | -9/Materials | Identified exit to Storage 1373 | -9/Materials | Build established: Scavenger-Mutant 1448 | -9/Materials | Entered Storage 1728 | -9/Storage | Garrison activated, responded to threat 1765 | -9/Storage | Identified exit to Garrison 1770 | -9/Storage | Entered Garrison 1808 | -9/Garrison | Triggered checkpoint 1833 | -9/Garrison | Core integrity fell below 50% 1842 | -9/Garrison | Garrison Relay disabled 1897 | -9/Garrison | Lost 6 parts (1p2n3u) 1917 | -9/Garrison | Build established: Mutant 2032 | -9/Garrison | Triggered checkpoint 2033 | -9/Garrison | Lost 3 parts (1n2w) 2052 | -9/Garrison | Triggered checkpoint 2056 | -9/Garrison | Triggered checkpoint 2066 | -9/Garrison | Destroyed 10 combat bots 2121 | -9/Garrison | Core integrity fell below 20% 2254 | -9/Garrison | Triggered checkpoint 2264 | -9/Garrison | Discovered new exit (range 48) 2280 | -9/Garrison | Triggered checkpoint 2374 | -9/Garrison | Installed Relay Interface Framework 2441 | -9/Garrison | Phase Generator disabled 2472 | -9/Garrison | Lost 5 parts (3n1u1w) 2653 | -9/Garrison | System corruption reached 10% 2690 | -9/Garrison | Entered Materials 2690 | -8/Materials | Evolved 2 slots: Utility x1, Weapon x1 2743 | -8/Materials | Garrison activated, responded to threat 2913 | -8/Materials | Lost 4 parts (2p1n1u) 2942 | -8/Materials | Destroyed 10 combat bots 3090 | -8/Materials | First assault squad dispatched 3120 | -8/Materials | Identified exit to Garrison 3124 | -8/Materials | Entered Garrison 3206 | -8/Garrison | Triggered checkpoint 3223 | -8/Garrison | Build established: Scavenger-Mutant 3279 | -8/Garrison | Lost 4 parts (1p1n2w) 3347 | -8/Garrison | Core integrity fell below 50% 3426 | -8/Garrison | Triggered checkpoint 3612 | -8/Garrison | Lost 6 parts (1n3u2w) 3662 | -8/Garrison | Rescued a captive Derelict 3662 | -8/Garrison | Rescued a captive Derelict 3678 | -8/Garrison | Lost 4 parts (1p1n1u1w) 3721 | -8/Garrison | Discovered new exit (range 15) 3748 | -8/Garrison | Entered Materials 3748 | -8/Materials | Accompanied by 2 allies 3952 | -8/Materials | Discovered new exit (range 13) 3975 | -8/Materials | Core integrity fell below 20% 4022 | -8/Materials | Entered Factory 4022 | -7/Factory | Evolved 2 slots: Utility x2 4030 | -7/Factory | Identified exit to DSF 4033 | -7/Factory | Entered DSF 4092 | -7/DSF | Additional patrols routed to DSF 4182 | -7/DSF | Discovered new exit (range 15) 4242 | -7/DSF | Entered Factory 4242 | -6/Factory | Evolved 2 slots: Propulsion x1, Utility x1 4304 | -6/Factory | Repaired Arc Projector 4530 | -6/Factory | Spotted B-75 Beast 4651 | -6/Factory | Lost 8 parts (2n3u3w) 4682 | -6/Factory | Discovered new exit (range 5) 4856 | -6/Factory | Build established: Scavenger-Gunner 4920 | -6/Factory | Lost 10 parts (1p3n2u4w) 5041 | -6/Factory | Cargo convoy interrupted 5287 | -6/Factory | Build established: Skirmisher 5819 | -6/Factory | Build established: Mutant 6142 | -6/Factory | Discovered new exit (range 25) 6232 | -6/Factory | Lost 5 parts (1n2u2w) 6253 | -6/Factory | Core integrity fell below 50% 6377 | -6/Factory | Lost 4 parts (1n2u1w) 6468 | -6/Factory | Identified exit to Lower Caves 6468 | -6/Factory | Identified exit to Extension 6499 | -6/Factory | Fabricated M-14 Sweeper? 6546 | -6/Factory | System corruption reached 10% 7301 | -6/Factory | Identified exit to Factory 7305 | -6/Factory | Entered another Factory area 7305 | -5/Factory | Evolved 2 slots: Propulsion x1, Weapon x1 7611 | -5/Factory | Build established: Scavenger-Gunner 7905 | -5/Factory | First assault squad dispatched 8058 | -5/Factory | Destroyed 10 combat bots 8570 | -5/Factory | Discovered new exit (range 2) 8571 | -5/Factory | Identified exit to Upper Caves 8624 | -5/Factory | Entered Upper Caves 8624 | -5/Upper Caves | Accompanied by 1 ally 8643 | -5/Upper Caves | Encountered a Warlord checkpoint 8715 | -5/Upper Caves | Build established: Scavenger-Skirmisher 9090 | -5/Upper Caves | Learned 4 Factory zone layouts 9094 | -5/Upper Caves | Learned 12 Factory zone layouts 9941 | -5/Upper Caves | Attracted the attention of an 0b10 base 9997 | -5/Upper Caves | Core integrity fell below 50% 9999 | -5/Upper Caves | Destroyed 11 combat bots 10002 | -5/Upper Caves | Discovered new exit (range 5) 10005 | -5/Upper Caves | Identified exit to Upper Caves 10021 | -5/Upper Caves | Entered another Upper Caves area 10022 | -5/Upper Caves | Lost 16 parts (1p6n2u7w) 10092 | -5/Upper Caves | Learned Factory emergency access door positions 10273 | -5/Upper Caves | Core integrity fell below 20% 10281 | -5/Upper Caves | Destroyed by S-27 Virus with Autogun Last Messages --------------- 10213_ H-66 Slayer destroyed. 10225_ Acquired 27 matter. 10226_ Acquired 5 matter. 10252_ Arm. Wheel destroyed. 10254_ Mak. Laser destroyed. 10254_ S-27 Virus destroyed. 10256_ Enh. Gauss Cannon destroyed. 10257_ Dropped Prc. Matter Filter. 10262_ System corrupted: Energy discharge (-20). 10268_ Imp. Cryofiber Web destroyed. 10276_ Slammed into S-27 Virus. 10277_ Adv. Sensor Array destroyed. 10278_ Slammed into S-27 Virus. 10278_ Core Analyzer destroyed. 10279_ Slammed into S-27 Virus. 10279_ Destabilizing: System interference. 10279_ Adv. Signal Interpreter temporarily disabled. 10280_ Slammed into S-27 Virus. 10281_ Imp. Transmission Jammer destroyed. [Achievement: Achiever] Map ----- +----------------------------------------------------+ | ????????????????? ???????????????????????? | | ?????????????????? ???????????????????????? | | ???????????????#### #???????????????????????? | | ???????????????# ####????????????????????? | | ????????????????? $ ##???????????????????? | | ??????????????????# #???????????????????? | | ???????????????????? #???????????????????? | | ?????????????????????# #????????????????????? | | ??????????????????????# ! #?????????????????????? | | ????????????????????### ###########????????????? | | ????????????????????# #????????????? | | ???????????# ##### #????????????? | | ????????????# ########### #????????????? | | ????????????# ###### #?????"???# #????????????? | | ????????????????????# #?""" ??# #????????????? | | ????????????????????# #"""" ??# #????????????? | | ?????????????????#### # ???# #????????????? | | ?????????????????# + ???+ #????????????? | | ?????????????????## # ??# #????????????? | | ???????????????#### #" # #????????????? | | ???????????????# #" T + #????????????? | | ???????????????# % #"""""""""# #????????????? | | ???????????## ##% #;######### #????????????? | | ???????????# ""; gg #????????????? | | ???????????# ### ## g #????????????? | | ????????? ???# ### @s #########??????????? # | | ?????? ????# ## s ss #???????????? | | ????? ? ?????# ## ## s #?????????????? | | ????? ?? ??????# ## #### s ##??????????????? | | ??????? ??????## ## ##??##### #???????????????? | | ?????? ?????### ## #???????###???????????????? | | ????????????###" ##????????????????????????? | | ????????????# #????####????????????????? | | ????????????# ####???## ####?????????????? | | ????????????## #??????# ##????????????? | | ?????????????#! #######?# #????????????? | | ?????????????#%! #### ### #????????????? | | ?????????????#* ##?# #?????????????? | | ?????????????# ##?## #?????????????? | | ?????????????# #?## #?????????????? | | ?????????????# ### ##?????? ??? | | ?????????????# ## ## ## ####??? ?? | | ?????????????# ## ### ### ? | | ?????????????###### #####?## #? | | ??????????????????## ##??????# #?# | | ???????????????????######???????# ##?# | | ????????????????????????????????# ### #??# | | ????????????????????????????????# ##??# #??? | | ???????????????????????????????## #???# #??? | | ???????????????????????????????# #???# #??? | +----------------------------------------------------+ Best States ------------- Heat Dissipation 83 Energy Generation 19 Energy Capacity 315 Matter Stores 300 Matter Capacity 300 Sight Range 18 Robot Scan Range 16 Terrain Scan Range 16 Terrain Scan Density 10 Base Temperature (-) 150 Armor Coverage 600 Resistance: EM 15 Core Shielding 30 Power Shielding 66 Weapon Shielding 90 Weapon Cycling 15 Evasion (%) 59 Target Analysis 6 Core Analysis 6 Recoil Reduction 3 Matter Filtering 50 Kinecelleration 30 Offensive Hacking 10 Relay Coupler Types 2 Relay Coupler Value 42 Authchip Count 1 Item Schematics ----------------- None Robot Schematics ------------------ None Fabricated ------------ M-14 Sweeper | x1 | -6/Factory | Preloaded Alien Tech Used ----------------- None Achievements -------------- Achiever Assimilation Complete Close Call Factory Defaults Quantum Hacking Quick And Dirty True Hacker Challenges ------------ None Game ------ Seed CoolantShockComputer Manual? 0 Play Time 04:15:47 Cumulative 40.2 hours Start 2024.06.22 @ 16:10:46 End 2024.06.25 @ 12:39:56 Sessions 13 Manual Loads 0 Difficulty Rogue Special Mode None Game No. 13 Rogue 13 Adventurer 0 Explorer 0 Win Type - Total 0 Types 0/0/0/0/0/0/0/0/0 Lore% 25 Gallery% 34 Achievement% 27 Wizard Run 0 Options --------- Layout 0 ASCII 0 Keyboard 1 Movement Arrows Keybinds 0 Fullscreen 2 Font 36/Terminus++ Map View 76x50 Zoom Use 0% Tactical HUD 1 Map Filters NONE Filters NONE Steam 1 RUN: 69d27c1c-3609-4f12-a79e-202e99927463